[Event "IIFL Wealth 4th Mumbai GM"]
[Site "Mumbai"]
[Date "2019.01.04"]
[Round "6"]
[White "Sekar, B."]
[Black "Sangma, Rahul"]
[Result "0-1"]
[ECO "C41"]
[WhiteElo "2137"]
[BlackElo "2289"]
[Annotator "NA"]
[PlyCount "98"]
[EventDate "2018.12.30"]
[EventType "swiss"]
[EventCountry "IND"]
[SourceTitle "playchess.com"]
[Source "ChessBase"]
[SourceQuality "1"]
[TimeControl "40/5400+30:1800+30"]

1. e4 {[%emt 0:00:00]} d6 {[%emt 0:00:18]} 2. d4 {[%emt 0:00:08]} Nf6 {[%emt 0:00:03]} 3. Nc3 {[%emt 0:00:47]} e5 {[%emt 0:00:04]} 4. Nf3 {[%emt 0:00:13]} Nbd7 {[%emt 0:00:02]} 5. Bc4 {[%emt 0:00:32]} Be7 {[%emt 0:00:03]} 6. O-O {[%emt 0:00:11]} O-O {[%emt 0:00:08]} 7. h3 {[%emt 0:01:00]} c6 {[%emt 0:00:18]} 8. a4 {[%emt 0:01:27]} a5 {[%emt 0:00:02]} 9. Ba2 {[%emt 0:02:47]} exd4 {[%emt 0:05:10]} 10. Qxd4 {[%emt 0:02:28]} Nc5 {[%emt 0:00:32]} 11. Be3 {[%emt 0:03:46]} Be6 {[%emt 0:12:26]} 12. Rfd1 {[%emt 0:03:17]} Nfd7 {[%emt 0:01:31]} 13. Qd2 {[%emt 0:19:05]} Bxa2 {[%emt 0:10:28]} 14. Rxa2 {[%emt 0:00:18]} f5 {[%emt 0:00:02]} 15. exf5 {[%emt 0:21:51]} Rxf5 {[%emt 0:01:19]} 16. Qe2 {[%emt 0:01:12]} d5 {[%emt 0:02:13]} 17. Re1 {[%emt 0:03:30]} Bd6 {[%emt 0:02:15]} 18. Raa1 {[%emt 0:01:05]} Ne5 {[%emt 0:11:09]} 19. Nxe5 {[%emt 0:05:27]} Rxe5 {[%emt 0:00:05]} 20. Qg4 {[%emt 0:03:04]} Qe7 {[%emt 0:04:47]} 21. Kf1 {[%emt 0:19:04]} Re8 {[%emt 0:02:56]} 22. Re2 {[%emt 0:03:31]} Ne4 {[%emt 0:05:47]} 23. Nxe4 {[%emt 0:00:11]} Rxe4 {[%emt 0:00:06]} 24. Bg5 {[%emt 0:00:44]} Qf7 {[%emt 0:15:12]} 25. Rxe4 {[%emt 0:02:44]} Rxe4 {[%emt 0:00:11]} 26. Qf3 {[%emt 0:01:53]} Qxf3 {[%emt 0:14:38]} 27. gxf3 {[%emt 0:00:01]} Rc4 {[%emt 0:00:01]} 28. c3 {[%emt 0:00:18]} d4 {[%emt 0:00:02]} 29. cxd4 {[%emt 0:01:46]} Rxd4 {[%emt 0:00:02]} 30. Be3 {[%emt 0:01:06]} Rb4 {[%emt 0:04:42]} 31. Rd1 {[%emt 0:01:01]} Be5 {[%emt 0:04:22]} 32. Rd8+ {[%emt 0:00:26]} Kf7 {[%emt 0:00:01]} 33. Bd2 {[%emt 0:00:22]} Rxb2 {[%emt 0:02:11]} 34. Bxa5 {[%emt 0:00:04]} Bf6 {[%emt 0:00:36]} 35. Ra8 {[%emt 0:01:38]} b5 {[%emt 0:02:08]} 36. axb5 {[%emt 0:00:19]} cxb5 {[%emt 0:00:01]} 37. Rb8 {[%emt 0:00:31]} Ke6 {[%emt 0:00:08]} 38. Be1 {[%emt 0:00:39]} Kd5 {[%emt 0:01:57]} 39. Ba5 {[%emt 0:00:26]} Kc4 {[%emt 0:00:41]} 40. Rc8+ {[%emt 0:00:00]} Kb3 {[%emt 0:00:00]} 41. Rb8 {[%emt 0:08:43]} Ka4 {[%emt 0:00:19]} 42. Be1 {[%emt 0:00:11]} b4 {[%emt 0:00:44]} 43. Ra8+ {[%emt 0:00:06]} Kb5 {[%emt 0:02:47]} 44. Rb8+ {[%emt 0:00:05]} Kc4 {[%emt 0:00:01]} 45. Rc8+ {[%emt 0:00:06]} Kd5 {[%emt 0:00:20]} 46. Rc7 {[%emt 0:00:25]} b3 {[%emt 0:00:37]} 47. Rb7 {[%emt 0:00:18]} Rb1 {[%emt 0:00:30]} 48. Ke2 {[%emt 0:01:04]} b2 {[%emt 0:00:18]} 49. Bd2 {[%emt 0:00:28]} Ra1 {[%emt 0:00:20]} 0-1

[Event "IIFL Wealth 4th Mumbai GM"]
[Site "Mumbai"]
[Date "2019.01.04"]
[Round "6"]
[White "Snehal, Bhosale"]
[Black "Aaryan Varshney"]
[Result "0-1"]
[ECO "D35"]
[WhiteElo "2135"]
[BlackElo "2200"]
[Annotator "NA"]
[PlyCount "80"]
[EventDate "2018.12.30"]
[EventType "swiss"]
[EventCountry "IND"]
[SourceTitle "playchess.com"]
[Source "ChessBase"]
[SourceQuality "1"]
[TimeControl "40/5400+30:1800+30"]

1. d4 Nf6 {[%emt 0:03:50]} 2. c4 {[%emt 0:00:00]} e6 {[%emt 0:00:08]} 3. Nc3 {[%emt 0:00:00]} d5 {[%emt 0:00:03]} 4. cxd5 {[%emt 0:00:06]} exd5 {[%emt 0:00:06]} 5. Bg5 {[%emt 0:00:11]} Be7 {[%emt 0:00:05]} 6. e3 {[%emt 0:00:09]} O-O {[%emt 0:00:08]} 7. Bd3 {[%emt 0:00:12]} c6 {[%emt 0:00:06]} 8. Nge2 {[%emt 0:00:28]} Nbd7 {[%emt 0:00:24]} 9. Qc2 {[%emt 0:00:40]} h6 {[%emt 0:01:15]} 10. Bf4 {[%emt 0:03:41]} b6 {[%emt 0:07:19]} 11. h3 {[%emt 0:06:25]} Bb7 {[%emt 0:00:12]} 12. O-O {[%emt 0:00:32]} c5 {[%emt 0:18:20]} 13. Ng3 {[%emt 0:10:26]} c4 {[%emt 0:08:38]} 14. Bf5 {[%emt 0:00:56]} a6 {[%emt 0:01:21]} 15. a4 {[%emt 0:10:29]} Re8 {[%emt 0:06:12]} 16. h4 {[%emt 0:03:13]} Bf8 {[%emt 0:02:39]} 17. h5 {[%emt 0:11:07]} Bc6 {[%emt 0:07:58]} 18. f3 {[%emt 0:08:57]} b5 {[%emt 0:07:19]} 19. e4 {[%emt 0:06:56]} Qb6 {[%emt 0:01:28]} 20. Nce2 {[%emt 0:07:45]} dxe4 {[%emt 0:10:12]} 21. fxe4 {[%emt 0:00:43]} Ne5 {[%emt 0:00:10]} 22. Bxe5 {[%emt 0:06:17]} Rxe5 {[%emt 0:00:43]} 23. Kh2 {[%emt 0:00:43]} Rxf5 {[%emt 0:01:49]} 24. Nxf5 {[%emt 0:08:29]} Bxe4 {[%emt 0:02:18]} 25. Qd2 {[%emt 0:01:11]} Re8 {[%emt 0:03:52]} 26. Neg3 {[%emt 0:01:30]} Bd3 {[%emt 0:04:46]} 27. Rf3 {[%emt 0:03:04]} Ne4 {[%emt 0:04:46]} 28. Qf4 {[%emt 0:05:39]} Nxg3 {[%emt 0:02:56]} 29. Kxg3 {[%emt 0:00:34]} Kh8 {[%emt 0:02:41]} 30. axb5 {[%emt 0:01:01]} axb5 {[%emt 0:00:41]} 31. Kh3 {[%emt 0:01:31]} b4 {[%emt 0:02:22]} 32. g4 {[%emt 0:02:06]} Qb7 {[%emt 0:00:36]} 33. Ng3 {[%emt 0:00:51]} f6 {[%emt 0:00:32]} 34. Re3 {[%emt 0:00:07]} Rd8 {[%emt 0:00:23]} 35. Rae1 {[%emt 0:00:38]} Bd6 {[%emt 0:00:31]} 36. Re8+ {[%emt 0:00:43]} Kh7 {[%emt 0:00:05]} 37. Qe3 {[%emt 0:00:31]} Rxe8 {[%emt 0:00:40]} 38. Qxe8 {[%emt 0:00:04]} Qf3 {[%emt 0:00:13]} 39. Rg1 {[%emt 0:00:49]} Bxg3 {[%emt 0:00:33]} 40. Rxg3 {[%emt 0:00:00]} Qh1# {[%emt 0:00:00]} 0-1

[Event "IIFL Wealth 4th Mumbai GM"]
[Site "Mumbai"]
[Date "2019.01.04"]
[Round "6"]
[White "Gandhi, Anish"]
[Black "Elgabry, Mohsen"]
[Result "1/2-1/2"]
[ECO "B06"]
[WhiteElo "2134"]
[BlackElo "2305"]
[Annotator "NA"]
[PlyCount "95"]
[EventDate "2018.12.30"]
[EventType "swiss"]
[EventCountry "IND"]
[SourceTitle "playchess.com"]
[Source "ChessBase"]
[SourceQuality "1"]
[TimeControl "40/5400+30:1800+30"]

1. e4 {[%emt 0:00:00]} g6 {[%emt 0:00:00]} 2. d4 {[%emt 0:00:00]} Bg7 {[%emt 0:00:00]} 3. Nc3 {[%emt 0:00:00]} d6 {[%emt 0:00:07]} 4. Bg5 {[%emt 0:01:29]} h6 {[%emt 0:00:15]} 5. Bh4 {[%emt 0:01:06]} a6 {[%emt 0:00:12]} 6. a4 {[%emt 0:03:25]} Nd7 {[%emt 0:00:20]} 7. Nf3 {[%emt 0:02:34]} c5 {[%emt 0:00:12]} 8. d5 {[%emt 0:02:36]} Qa5 {[%emt 0:03:06]} 9. Qd2 {[%emt 0:02:30]} Qb4 {[%emt 0:00:17]} 10. Rb1 {[%emt 0:19:11]} Ngf6 {[%emt 0:01:46]} 11. Bd3 {[%emt 0:01:32]} O-O {[%emt 0:08:37]} 12. O-O {[%emt 0:01:30]} c4 {[%emt 0:03:32]} 13. Be2 {[%emt 0:00:14]} Nc5 {[%emt 0:00:10]} 14. Rfe1 {[%emt 0:09:39]} Bd7 {[%emt 0:05:31]} 15. e5 {[%emt 0:04:42]} dxe5 {[%emt 0:01:12]} 16. Nxe5 {[%emt 0:01:48]} Bxa4 {[%emt 0:07:05]} 17. Bxc4 {[%emt 0:06:01]} Nfd7 {[%emt 0:01:41]} 18. Bg3 {[%emt 0:10:11]} Nxe5 {[%emt 0:00:37]} 19. Bxe5 {[%emt 0:02:33]} Qxc4 {[%emt 0:00:58]} 20. Bxg7 {[%emt 0:01:29]} Kxg7 {[%emt 0:00:08]} 21. b3 {[%emt 0:00:04]} Bxb3 {[%emt 0:00:36]} 22. cxb3 {[%emt 0:00:06]} Nxb3 {[%emt 0:00:36]} 23. Qb2 {[%emt 0:02:46]} Nc5 {[%emt 0:05:26]} 24. Rxe7 {[%emt 0:02:06]} Kg8 {[%emt 0:01:17]} 25. d6 {[%emt 0:03:06]} b5 {[%emt 0:00:52]} 26. Rd1 {[%emt 0:09:26]} Qb3 {[%emt 0:07:38]} 27. Qd2 {[%emt 0:00:49]} Rad8 {[%emt 0:01:34]} 28. Ne4 {[%emt 0:04:26]} Nxe4 {[%emt 0:00:14]} 29. Rxe4 {[%emt 0:00:05]} Rd7 {[%emt 0:02:55]} 30. h3 {[%emt 0:02:25]} Rfd8 {[%emt 0:00:36]} 31. Rd4 {[%emt 0:00:53]} Qa3 {[%emt 0:00:28]} 32. Rd3 {[%emt 0:01:21]} Qc5 {[%emt 0:02:34]} 33. Rd5 {[%emt 0:02:25]} Qb6 {[%emt 0:02:33]} 34. h4 {[%emt 0:00:09]} Kh7 {[%emt 0:00:58]} 35. h5 {[%emt 0:00:17]} Rg8 {[%emt 0:01:28]} 36. Re1 {[%emt 0:00:49]} Qd8 {[%emt 0:00:01]} 37. Qf4 {[%emt 0:01:11]} gxh5 {[%emt 0:00:27]} 38. Rf5 {[%emt 0:01:17]} Rxd6 {[%emt 0:00:59]} 39. Rxf7+ {[%emt 0:00:41]} Rg7 {[%emt 0:00:19]} 40. Rf8 {[%emt 0:00:00]} Qg5 {[%emt 0:00:00]} 41. Qe4+ {[%emt 0:03:37]} Rdg6 {[%emt 0:02:22]} 42. g3 {[%emt 0:00:18]} h4 {[%emt 0:01:46]} 43. Qe8 {[%emt 0:05:30]} Rg8 {[%emt 0:00:30]} 44. Re7+ {[%emt 0:01:26]} Kh8 {[%emt 0:04:52]} 45. Qf7 {[%emt 0:05:37]} Qc1+ {[%emt 0:00:51]} 46. Kg2 {[%emt 0:00:25]} Qc6+ {[%emt 0:00:06]} 47. Kg1 {[%emt 0:00:51]} Qc1+ {[%emt 0:00:09]} 48. Kg2 {[%emt 0:00:25]} 1/2-1/2

[Event "IIFL Wealth 4th Mumbai GM"]
[Site "Mumbai"]
[Date "2019.01.04"]
[Round "6"]
[White "Soham Datar"]
[Black "Banerjee, Sushant"]
[Result "1-0"]
[ECO "A39"]
[WhiteElo "2134"]
[BlackElo "2198"]
[Annotator "NA"]
[PlyCount "69"]
[EventDate "2018.12.30"]
[EventType "swiss"]
[EventCountry "IND"]
[SourceTitle "playchess.com"]
[Source "ChessBase"]
[SourceQuality "1"]
[TimeControl "40/5400+30:1800+30"]

1. Nf3 {[%emt 0:00:00]} Nf6 {[%emt 0:00:00]} 2. c4 {[%emt 0:00:00]} c5 {[%emt 0:00:00]} 3. Nc3 {[%emt 0:00:00]} Nc6 {[%emt 0:00:13]} 4. g3 {[%emt 0:00:33]} g6 {[%emt 0:02:03]} 5. Bg2 {[%emt 0:00:06]} Bg7 {[%emt 0:00:04]} 6. O-O {[%emt 0:00:05]} O-O {[%emt 0:00:05]} 7. d4 {[%emt 0:00:10]} cxd4 {[%emt 0:00:33]} 8. Nxd4 {[%emt 0:00:07]} Qa5 {[%emt 0:00:47]} 9. Nb3 {[%emt 0:00:19]} Qb4 {[%emt 0:01:55]} 10. c5 {[%emt 0:03:34]} Na5 {[%emt 0:03:57]} 11. e4 {[%emt 0:26:47]} Nxb3 {[%emt 0:16:22]} 12. axb3 {[%emt 0:00:12]} d6 {[%emt 0:02:02]} 13. cxd6 {[%emt 0:01:20]} Bg4 {[%emt 0:06:33]} 14. f3 {[%emt 0:00:43]} Be6 {[%emt 0:00:05]} 15. dxe7 {[%emt 0:00:47]} Rfe8 {[%emt 0:00:51]} 16. e5 {[%emt 0:04:12]} Qc5+ {[%emt 0:28:05]} 17. Kh1 {[%emt 0:00:18]} Qxe5 {[%emt 0:00:04]} 18. Bf4 {[%emt 0:00:05]} Qh5 {[%emt 0:05:03]} 19. b4 {[%emt 0:01:47]} Nd5 {[%emt 0:01:41]} 20. Ra5 {[%emt 0:06:48]} Bxc3 {[%emt 0:08:06]} 21. bxc3 {[%emt 0:00:05]} g5 {[%emt 0:01:49]} 22. Rxd5 {[%emt 0:00:14]} Bxd5 {[%emt 0:01:31]} 23. Qxd5 {[%emt 0:00:08]} Rxe7 {[%emt 0:00:06]} 24. Qxg5+ {[%emt 0:03:39]} Qxg5 {[%emt 0:00:10]} 25. Bxg5 {[%emt 0:00:01]} Rc7 {[%emt 0:01:52]} 26. Bf6 {[%emt 0:00:15]} Re8 {[%emt 0:02:45]} 27. f4 {[%emt 0:00:30]} h6 {[%emt 0:00:34]} 28. Rd1 {[%emt 0:01:34]} a6 {[%emt 0:00:56]} 29. f5 {[%emt 0:02:38]} Kh7 {[%emt 0:01:11]} 30. Bf3 {[%emt 0:00:27]} b6 {[%emt 0:04:06]} 31. Ra1 {[%emt 0:02:29]} a5 {[%emt 0:04:42]} 32. bxa5 {[%emt 0:00:27]} Rc5 {[%emt 0:00:38]} 33. axb6 {[%emt 0:01:31]} Rxf5 {[%emt 0:00:27]} 34. Bc6 {[%emt 0:00:06]} Rxf6 {[%emt 0:03:48]} 35. Bxe8 1-0

[Event "IIFL Wealth 4th Mumbai GM"]
[Site "Mumbai"]
[Date "2019.01.04"]
[Round "6"]
[White "Vatsal Singhania"]
[Black "Srijit Paul"]
[Result "0-1"]
[ECO "A89"]
[WhiteElo "2130"]
[BlackElo "2298"]
[Annotator "NA"]
[PlyCount "66"]
[EventDate "2018.12.30"]
[EventType "swiss"]
[EventCountry "IND"]
[SourceTitle "playchess.com"]
[Source "ChessBase"]
[SourceQuality "1"]
[TimeControl "40/5400+30:1800+30"]

1. d4 {[%emt 0:00:00]} f5 {[%emt 0:00:00]} 2. g3 {[%emt 0:00:00]} Nf6 {[%emt 0:00:00]} 3. Bg2 {[%emt 0:00:00]} g6 {[%emt 0:00:00]} 4. Nf3 {[%emt 0:00:00]} Bg7 {[%emt 0:00:00]} 5. O-O {[%emt 0:00:01]} O-O {[%emt 0:00:04]} 6. c4 {[%emt 0:00:05]} d6 {[%emt 0:00:10]} 7. Nc3 {[%emt 0:00:06]} Nc6 {[%emt 0:05:09]} 8. d5 {[%emt 0:00:07]} Na5 {[%emt 0:00:04]} 9. Nd2 {[%emt 0:05:37]} c5 {[%emt 0:00:27]} 10. dxc6 {[%emt 0:00:51]} Nxc6 {[%emt 0:00:09]} 11. Nb3 {[%emt 0:01:03]} Be6 {[%emt 0:08:20]} 12. Nd5 {[%emt 0:05:38]} Bf7 {[%emt 0:03:34]} 13. Rb1 {[%emt 0:22:30]} Rc8 {[%emt 0:03:36]} 14. Be3 {[%emt 0:12:47]} b6 {[%emt 0:02:15]} 15. Nd4 {[%emt 0:01:55]} Nxd4 {[%emt 0:01:11]} 16. Bxd4 {[%emt 0:02:12]} e5 {[%emt 0:13:26]} 17. Bc3 {[%emt 0:00:46]} Rxc4 {[%emt 0:00:08]} 18. Qd3 {[%emt 0:04:52]} Rc8 {[%emt 0:05:07]} 19. Bb4 {[%emt 0:05:54]} a5 {[%emt 0:04:20]} 20. Nxf6+ {[%emt 0:00:44]} Qxf6 {[%emt 0:00:15]} 21. Bxd6 {[%emt 0:02:08]} Rfd8 {[%emt 0:01:48]} 22. Rbd1 {[%emt 0:03:15]} Bf8 {[%emt 0:00:28]} 23. Bxe5 {[%emt 0:02:15]} Qxe5 {[%emt 0:00:08]} 24. Qxd8 {[%emt 0:00:09]} Rxd8 {[%emt 0:00:05]} 25. Rxd8 {[%emt 0:00:08]} Qxb2 {[%emt 0:00:31]} 26. Rfd1 {[%emt 0:00:10]} Qxa2 {[%emt 0:00:44]} 27. Rc8 {[%emt 0:00:38]} Kg7 {[%emt 0:00:12]} 28. Rd7 {[%emt 0:00:12]} Qb1+ {[%emt 0:04:00]} 29. Bf1 {[%emt 0:00:10]} Kg8 {[%emt 0:00:07]} 30. Rdd8 {[%emt 0:00:10]} Qb4 {[%emt 0:00:06]} 31. Rxf8+ {[%emt 0:02:21]} Qxf8 {[%emt 0:00:09]} 32. Rxf8+ {[%emt 0:00:04]} Kxf8 {[%emt 0:00:09]} 33. e4 {[%emt 0:00:03]} a4 {[%emt 0:00:06]} 0-1

[Event "IIFL Wealth 4th Mumbai GM"]
[Site "Mumbai"]
[Date "2019.01.04"]
[Round "6"]
[White "Pranesh M"]
[Black "Mohammad Nubairshah Shaikh"]
[Result "1/2-1/2"]
[ECO "B06"]
[WhiteElo "2125"]
[BlackElo "2437"]
[Annotator "NA"]
[PlyCount "80"]
[EventDate "2018.12.30"]
[EventType "swiss"]
[EventCountry "IND"]
[SourceTitle "playchess.com"]
[Source "ChessBase"]
[SourceQuality "1"]
[TimeControl "40/5400+30:1800+30"]

1. e4 {[%emt 0:00:00]} g6 {[%emt 0:00:00]} 2. d4 {[%emt 0:00:00]} Bg7 {[%emt 0:00:00]} 3. Nf3 {[%emt 0:00:00]} c6 {[%emt 0:00:06]} 4. Bd3 {[%emt 0:00:08]} d6 {[%emt 0:01:19]} 5. O-O {[%emt 0:00:15]} Nf6 {[%emt 0:11:22]} 6. Qe2 {[%emt 0:00:15]} Bg4 {[%emt 0:05:48]} 7. c3 {[%emt 0:01:56]} O-O {[%emt 0:03:13]} 8. Be3 {[%emt 0:00:27]} e5 {[%emt 0:09:58]} 9. h3 {[%emt 0:01:02]} Bxf3 {[%emt 0:00:23]} 10. Qxf3 {[%emt 0:00:02]} Nbd7 {[%emt 0:00:02]} 11. Nd2 {[%emt 0:00:36]} Qe7 {[%emt 0:03:48]} 12. Rad1 {[%emt 0:02:04]} Rfe8 {[%emt 0:05:39]} 13. Nc4 {[%emt 0:02:00]} d5 {[%emt 0:06:57]} 14. dxe5 {[%emt 0:01:43]} Nxe4 {[%emt 0:00:23]} 15. Bxe4 {[%emt 0:01:46]} dxc4 {[%emt 0:00:02]} 16. Bg5 {[%emt 0:05:08]} Nxe5 {[%emt 0:15:43]} 17. Bxe7 {[%emt 0:01:09]} Nxf3+ {[%emt 0:00:02]} 18. Bxf3 {[%emt 0:00:01]} Rxe7 {[%emt 0:00:01]} 19. Rfe1 {[%emt 0:00:01]} Kf8 {[%emt 0:00:47]} 20. Re2 {[%emt 0:03:13]} Rc8 {[%emt 0:12:02]} 21. Red2 {[%emt 0:01:49]} Ke8 {[%emt 0:00:21]} 22. Kf1 {[%emt 0:00:10]} a5 {[%emt 0:05:26]} 23. a4 {[%emt 0:01:56]} Rec7 {[%emt 0:04:56]} 24. Ra1 {[%emt 0:02:11]} Ra8 {[%emt 0:04:25]} 25. Be2 {[%emt 0:05:14]} Bh6 {[%emt 0:01:42]} 26. Rd4 {[%emt 0:00:58]} b5 {[%emt 0:00:01]} 27. Bf3 {[%emt 0:00:57]} Rb8 {[%emt 0:01:07]} 28. axb5 {[%emt 0:01:01]} cxb5 {[%emt 0:00:01]} 29. Rxa5 {[%emt 0:00:28]} Bc1 {[%emt 0:00:07]} 30. Re4+ {[%emt 0:05:06]} Re7 {[%emt 0:03:23]} 31. Rxe7+ {[%emt 0:02:01]} Kxe7 {[%emt 0:00:01]} 32. Bc6 {[%emt 0:01:29]} b4 {[%emt 0:01:09]} 33. Rb5 {[%emt 0:02:22]} Rxb5 {[%emt 0:04:05]} 34. Bxb5 {[%emt 0:00:06]} Bxb2 {[%emt 0:00:13]} 35. cxb4 {[%emt 0:00:08]} Ba3 {[%emt 0:01:43]} 36. Bxc4 {[%emt 0:00:06]} Bxb4 {[%emt 0:00:03]} 37. Ke2 {[%emt 0:00:10]} f5 {[%emt 0:00:05]} 38. f4 {[%emt 0:00:06]} Bd6 {[%emt 0:00:05]} 39. Kf3 {[%emt 0:00:03]} Kf6 {[%emt 0:00:03]} 40. g4 {[%emt 0:00:00]} h6 {Ke4 Ke5+} 1/2-1/2

[Event "IIFL Wealth 4th Mumbai GM"]
[Site "Mumbai"]
[Date "2019.01.04"]
[Round "6"]
[White "Mahindrakar Indrajeet"]
[Black "Sarwat, Walaa"]
[Result "1-0"]
[ECO "C85"]
[WhiteElo "2106"]
[BlackElo "2276"]
[Annotator "NA"]
[PlyCount "53"]
[EventDate "2018.12.30"]
[EventType "swiss"]
[EventCountry "IND"]
[SourceTitle "playchess.com"]
[Source "ChessBase"]
[SourceQuality "1"]
[TimeControl "40/5400+30:1800+30"]

1. e4 {[%emt 0:00:00]} e5 {[%emt 0:00:00]} 2. Nf3 {[%emt 0:00:00]} Nc6 {[%emt 0:00:00]} 3. Bb5 {[%emt 0:00:02]} a6 {[%emt 0:00:03]} 4. Ba4 {[%emt 0:00:17]} Nf6 {[%emt 0:00:13]} 5. O-O {[%emt 0:00:16]} Be7 {[%emt 0:00:12]} 6. Bxc6 {[%emt 0:00:35]} dxc6 {[%emt 0:00:14]} 7. Qe1 {[%emt 0:00:08]} Bd6 {[%emt 0:01:24]} 8. d4 {[%emt 0:01:14]} Nd7 {[%emt 0:00:15]} 9. dxe5 {[%emt 0:05:25]} Nxe5 {[%emt 0:00:29]} 10. Nxe5 {[%emt 0:00:22]} Bxe5 {[%emt 0:00:11]} 11. Nc3 {[%emt 0:00:36]} O-O {[%emt 0:01:03]} 12. Be3 {[%emt 0:00:54]} Qe7 {[%emt 0:06:28]} 13. f3 {[%emt 0:06:18]} f5 {[%emt 0:09:18]} 14. Rd1 {[%emt 0:04:43]} Re8 {[%emt 0:11:24]} 15. Bd4 {[%emt 0:03:38]} Bxd4+ {[%emt 0:06:12]} 16. Rxd4 {[%emt 0:00:09]} c5 {[%emt 0:09:23]} 17. Nd5 {[%emt 0:16:14]} Qe5 {[%emt 0:03:11]} 18. Rd2 {[%emt 0:00:45]} c4 {[%emt 0:01:59]} 19. Qg3 {[%emt 0:04:56]} Qxb2 {[%emt 0:13:31]} 20. Nxc7 {[%emt 0:03:44]} Be6 {[%emt 0:03:12]} 21. Nxa8 {[%emt 0:02:17]} Rxa8 {[%emt 0:01:07]} 22. exf5 {[%emt 0:05:16]} Bxf5 {[%emt 0:01:10]} 23. Qf4 {[%emt 0:02:08]} c3 {[%emt 0:02:16]} 24. Re2 {[%emt 0:02:14]} Rf8 {[%emt 0:14:05]} 25. Qc4+ {[%emt 0:01:32]} Kh8 {[%emt 0:00:08]} 26. Qc5 {[%emt 0:00:13]} Kg8 {[%emt 0:00:48]} 27. Qd5+ {[%emt 0:00:22]} 1-0

[Event "IIFL Wealth 4th Mumbai GM"]
[Site "Mumbai"]
[Date "2019.01.04"]
[Round "6"]
[White "Kavinda, Akila"]
[Black "Ziatdinov, Raset"]
[Result "1/2-1/2"]
[ECO "A46"]
[WhiteElo "2092"]
[BlackElo "2252"]
[Annotator "NA"]
[PlyCount "102"]
[EventDate "2018.12.30"]
[EventType "swiss"]
[EventCountry "IND"]
[SourceTitle "playchess.com"]
[Source "ChessBase"]
[SourceQuality "1"]
[TimeControl "40/5400+30:1800+30"]

1. d4 {[%emt 0:00:00]} Nf6 {[%emt 0:04:11]} 2. Nf3 {[%emt 0:00:00]} e6 {[%emt 0:00:07]} 3. c4 {[%emt 0:00:00]} c5 {[%emt 0:00:11]} 4. e3 {[%emt 0:01:29]} d5 {[%emt 0:01:36]} 5. cxd5 {[%emt 0:00:10]} exd5 {[%emt 0:00:36]} 6. Bb5+ {[%emt 0:00:09]} Bd7 {[%emt 0:00:44]} 7. Bxd7+ {[%emt 0:00:25]} Nbxd7 {[%emt 0:00:02]} 8. dxc5 Nxc5 {[%emt 0:01:07]} 9. O-O {[%emt 0:00:28]} Be7 {[%emt 0:00:24]} 10. Nc3 {[%emt 0:04:47]} O-O {[%emt 0:00:08]} 11. b3 {[%emt 0:00:15]} Qd7 {[%emt 0:00:38]} 12. Bb2 {[%emt 0:10:33]} Rfd8 {[%emt 0:00:14]} 13. Ne2 {[%emt 0:02:10]} Nfe4 {[%emt 0:00:50]} 14. Nf4 {[%emt 0:05:14]} Bf6 {[%emt 0:05:45]} 15. Bxf6 {[%emt 0:04:06]} Nxf6 {[%emt 0:00:03]} 16. Rc1 {[%emt 0:06:34]} Nce4 {[%emt 0:00:20]} 17. Qd4 {[%emt 0:05:03]} Qd6 {[%emt 0:06:31]} 18. Qb2 {[%emt 0:08:37]} b5 {[%emt 0:04:10]} 19. Ne2 {[%emt 0:09:35]} b4 {[%emt 0:04:44]} 20. Nfd4 {[%emt 0:03:29]} Ng4 {[%emt 0:05:43]} 21. g3 {[%emt 0:05:20]} Qh6 {[%emt 0:08:06]} 22. h4 {[%emt 0:02:20]} Ne5 {[%emt 0:02:00]} 23. Nf4 {[%emt 0:02:12]} a5 {[%emt 0:13:48]} 24. Kg2 {[%emt 0:09:59]} Qf6 {[%emt 0:09:01]} 25. Nh5 {[%emt 0:03:50]} Qg6 {[%emt 0:00:31]} 26. Nf4 {[%emt 0:01:07]} Qg4 {[%emt 0:01:58]} 27. Nde6 {[%emt 0:07:38]} Nd3 {[%emt 0:22:50]} 28. Nxd3 {[%emt 0:00:29]} Qxe6 {[%emt 0:00:17]} 29. Nf4 {[%emt 0:02:38]} Qf5 {[%emt 0:00:36]} 30. Ne2 {[%emt 0:01:47]} h5 {[%emt 0:01:23]} 31. f3 {[%emt 0:00:58]} Nf6 {[%emt 0:00:50]} 32. Qd2 {[%emt 0:00:20]} Re8 {[%emt 0:00:24]} 33. Nd4 {[%emt 0:00:14]} Qd7 {[%emt 0:00:32]} 34. Rfe1 {[%emt 0:00:31]} Reb8 {[%emt 0:01:10]} 35. Rc2 {[%emt 0:00:40]} a4 {[%emt 0:00:10]} 36. Rec1 {[%emt 0:01:29]} axb3 {[%emt 0:00:25]} 37. axb3 {[%emt 0:00:05]} Rb7 {[%emt 0:00:34]} 38. Qd3 {[%emt 0:01:42]} Re8 {[%emt 0:00:28]} 39. Re1 {[%emt 0:01:33]} Rb6 {[%emt 0:01:30]} 40. Rec1 {[%emt 0:00:00]} Ra8 {[%emt 0:00:00]} 41. Qf5 {[%emt 0:13:09]} g6 {[%emt 0:05:12]} 42. Qxd7 {[%emt 0:04:46]} Nxd7 {[%emt 0:00:04]} 43. Rc8+ {[%emt 0:01:03]} Rxc8 {[%emt 0:00:08]} 44. Rxc8+ {[%emt 0:00:04]} Kg7 {[%emt 0:00:04]} 45. Rc6 {[%emt 0:06:47]} Rb7 {[%emt 0:03:10]} 46. Rd6 {[%emt 0:00:08]} Nf6 {[%emt 0:05:58]} 47. Kf2 {[%emt 0:00:54]} Ra7 {[%emt 0:01:38]} 48. Rb6 {[%emt 0:00:18]} Ra2+ {[%emt 0:00:14]} 49. Kf1 {[%emt 0:02:23]} Ra1+ {[%emt 0:00:21]} 50. Kf2 {[%emt 0:00:03]} Ra2+ {[%emt 0:00:06]} 51. Kf1 {[%emt 0:02:40]} Ra1+ {[%emt 0:00:15]} 1/2-1/2